[Event "10th Iberoamericano-ch 2024"]
[Site "Linares"]
[Date "2024.09.27"]
[Round "5.25"]
[White "Diaz Mino, Daniel"]
[Black "Garcia, Jhoel"]
[Result "1/2-1/2"]
[ECO "B41"]
[WhiteElo "2130"]
[BlackElo "2360"]
[Annotator "ChessBase"]
[PlyCount "107"]
[EventDate "2024.09.25"]
[EventType "swiss"]
[EventCountry "ESP"]
[SourceTitle "playchess.com"]
[Source "ChessBase"]
[SourceQuality "1"]
[TimeControl "5400+30"]

1. e4 {[%emt 0:00:03]} c5 {[%emt 0:01:37]} 2. Nf3 {[%emt 0:00:33]} e6 {[%emt 0:00:36]} 3. d4 {[%emt 0:00:05]} cxd4 {[%emt 0:00:04]} 4. Nxd4 {[%emt 0:00:08]} a6 {[%emt 0:03:18]} 5. c4 {[%emt 0:00:21]} Nf6 {[%emt 0:01:12]} 6. Nc3 {[%emt 0:00:03]} d6 {[%emt 0:00:42]} 7. Be3 {[%emt 0:05:07]} b6 {[%emt 0:09:13]} 8. f3 {[%emt 0:08:16]} Bb7 {[%emt 0:01:22]} 9. Be2 {[%emt 0:01:25]} Nbd7 {[%emt 0:06:09]} 10. O-O {[%emt 0:02:20]} Be7 {[%emt 0:00:55]} 11. Rc1 {[%emt 0:08:50]} O-O {[%emt 0:00:24]} 12. Qd2 {[%emt 0:02:25]} Rc8 {[%emt 0:04:13]} 13. Rfd1 {[%emt 0:02:20]} Qc7 {[%emt 0:07:03]} 14. b3 {[%emt 0:06:10]} Qb8 {[%emt 0:02:40]} 15. Qe1 {[%emt 0:03:20]} Rfe8 {[%emt 0:02:33]} 16. Qf2 {[%emt 0:00:52]} Bd8 {[%emt 0:07:55]} 17. Qg3 {[%emt 0:14:38]} Kh8 {[%emt 0:11:29]} 18. Qh3 {[%emt 0:15:17]} Ne5 {[%emt 0:13:15]} 19. Bg5 {[%emt 0:08:53]} Ng6 {[%emt 0:05:36]} 20. a4 {[%emt 0:02:53]} d5 {[%emt 0:11:16]} 21. exd5 {[%emt 0:09:59]} Nxd5 {[%emt 0:00:00]} 22. Bxd8 {[%emt 0:01:24]} Nxc3 {[%emt 0:03:08]} 23. Rxc3 {[%emt 0:02:09]} Nf4 {[%emt 0:01:11]} 24. Qg3 {[%emt 0:00:57]} Rexd8 {[%emt 0:01:48]} 25. Qf2 {[%emt 0:00:01]} Qe5 {[%emt 0:02:46]} 26. Bf1 {[%emt 0:01:05]} Qc5 {[%emt 0:00:45]} 27. Rcc1 {[%emt 0:00:48]} a5 {[%emt 0:01:16]} 28. g3 {[%emt 0:01:37]} Ng6 {[%emt 0:00:19]} 29. Bg2 {[%emt 0:00:21]} Ne5 {[%emt 0:00:25]} 30. Kf1 {[%emt 0:02:10]} Rd7 {[%emt 0:00:24]} 31. Rd2 {[%emt 0:00:21]} Rcd8 {[%emt 0:00:22]} 32. Rcd1 {[%emt 0:00:01]} Nc6 {[%emt 0:00:53]} 33. f4 {[%emt 0:00:35]} Rd6 {[%emt 0:01:14]} 34. Nf3 {[%emt 0:00:39]} Rxd2 {[%emt 0:00:40]} 35. Rxd2 {[%emt 0:00:01]} Rxd2 {[%emt 0:00:32]} 36. Qxd2 {[%emt 0:00:55]} Qe7 {[%emt 0:00:21]} 37. Ne5 {[%emt 0:01:03]} Nxe5 {[%emt 0:00:31]} 38. fxe5 {[%emt 0:00:02]} h6 {[%emt 0:00:19]} 39. Qd6 {[%emt 0:01:13]} Bxg2+ {[%emt 0:00:07]} 40. Kxg2 {[%emt 0:00:06]} Qb7+ {[%emt 0:00:03]} 41. Kf2 {[%emt 0:00:36]} Kh7 {[%emt 0:00:34]} 42. Qd3+ {[%emt 0:00:39]} g6 {[%emt 0:00:13]} 43. Kg1 {[%emt 0:00:46]} Qc6 {[%emt 0:00:17]} 44. Qe2 {[%emt 0:00:31]} Kg7 {[%emt 0:00:16]} 45. h4 {[%emt 0:00:19]} Qc5+ {[%emt 0:00:12]} 46. Kh2 {[%emt 0:00:19]} Qd4 {[%emt 0:00:07]} 47. Kh3 {[%emt 0:00:53]} Qc3 {[%emt 0:00:51]} 48. Qf2 {[%emt 0:00:01]} Qb4 {[%emt 0:02:32]} 49. Qf6+ {[%emt 0:00:16]} Kg8 {[%emt 0:00:09]} 50. h5 {[%emt 0:00:30]} Qe1 {[%emt 0:01:00]} 51. Qd8+ {[%emt 0:00:53]} Kg7 {[%emt 0:00:08]} 52. Qf6+ {[%emt 0:00:06]} Kg8 {[%emt 0:00:03]} 53. Qd8+ {[%emt 0:00:36]} Kg7 {[%emt 0:01:19]} 54. Qf6+ {[%emt 0:00:04]} 1/2-1/2

[Event "10th Iberoamericano-ch 2024"]
[Site "Linares"]
[Date "2024.09.27"]
[Round "5.26"]
[White "Donate Moreno, Silvia"]
[Black "Marin Ferragut, Pau"]
[Result "0-1"]
[ECO "B90"]
[WhiteElo "2126"]
[BlackElo "2348"]
[Annotator "ChessBase"]
[PlyCount "66"]
[EventDate "2024.09.25"]
[EventType "swiss"]
[EventCountry "ESP"]
[SourceTitle "playchess.com"]
[Source "ChessBase"]
[SourceQuality "1"]
[TimeControl "5400+30"]

1. e4 {[%emt 0:00:03]} c5 {[%emt 0:00:13]} 2. Nf3 {[%emt 0:00:13]} d6 {[%emt 0:00:30]} 3. d4 {[%emt 0:00:12]} cxd4 {[%emt 0:00:33]} 4. Nxd4 {[%emt 0:00:08]} Nf6 {[%emt 0:00:16]} 5. Nc3 {[%emt 0:00:10]} a6 {[%emt 0:00:44]} 6. Be3 {[%emt 0:00:18]} e6 {[%emt 0:00:36]} 7. f3 {[%emt 0:00:44]} b5 {[%emt 0:00:31]} 8. Qd2 {[%emt 0:00:28]} Nbd7 {[%emt 0:00:39]} 9. a4 {[%emt 0:04:53]} b4 {[%emt 0:06:57]} 10. Na2 {[%emt 0:00:10]} d5 {[%emt 0:00:27]} 11. exd5 {[%emt 0:06:03]} Nxd5 {[%emt 0:00:31]} 12. Bf2 {[%emt 0:03:03]} Bb7 {[%emt 0:05:13]} 13. Nc1 {[%emt 0:06:18]} Be7 {[%emt 0:05:44]} 14. Nd3 {[%emt 0:02:32]} Rc8 {[%emt 0:02:11]} 15. g3 {[%emt 0:06:27]} Bd6 {[%emt 0:19:37]} 16. Qe2 {[%emt 0:05:54]} Qf6 {[%emt 0:01:57]} 17. Bg2 {[%emt 0:02:18]} O-O {[%emt 0:00:58]} 18. O-O {[%emt 0:00:44]} Nc5 {[%emt 0:02:01]} 19. Rfd1 {[%emt 0:07:11]} Rfd8 {[%emt 0:01:22]} 20. a5 {[%emt 0:09:51]} h6 {[%emt 0:03:17]} 21. Bh1 {[%emt 0:00:49]} Nxd3 {[%emt 0:04:14]} 22. cxd3 {[%emt 0:03:41]} Be5 {[%emt 0:05:20]} 23. Nb3 {[%emt 0:05:09]} Bxb2 {[%emt 0:01:09]} 24. Rab1 {[%emt 0:02:27]} Ba3 {[%emt 0:04:29]} 25. Bd4 {[%emt 0:01:54]} Nc3 {[%emt 0:00:46]} 26. Bxf6 {[%emt 0:00:51]} Nxe2+ {[%emt 0:00:08]} 27. Kf1 {[%emt 0:00:07]} Nxg3+ {[%emt 0:01:55]} 28. hxg3 {[%emt 0:00:08]} gxf6 {[%emt 0:00:04]} 29. Ke2 {[%emt 0:01:18]} Rc3 {[%emt 0:01:19]} 30. d4 {[%emt 0:01:09]} Bc6 {[%emt 0:00:56]} 31. Nc5 {[%emt 0:01:20]} Bb5+ {[%emt 0:02:57]} 32. Kf2 {[%emt 0:01:18]} Rc2+ {[%emt 0:00:09]} 33. Ke3 {[%emt 0:00:10]} Bb2 {[%emt 0:01:50]} 0-1

[Event "10th Iberoamericano-ch 2024"]
[Site "Linares"]
[Date "2024.09.27"]
[Round "5.27"]
[White "Vitier Vazquez, Cristian"]
[Black "Gomez Carreno, Martin"]
[Result "1-0"]
[ECO "D42"]
[WhiteElo "2344"]
[BlackElo "2124"]
[Annotator "RC"]
[PlyCount "147"]
[EventDate "2024.09.25"]
[EventType "swiss"]
[EventCountry "ESP"]
[SourceTitle "playchess.com"]
[Source "ChessBase"]
[SourceQuality "1"]
[TimeControl "5400+30"]

1. Nf3 {[%emt 0:04:06]} Nf6 {[%emt 0:00:06]} 2. c4 {[%emt 0:00:12]} e6 {[%emt 0:00:12]} 3. Nc3 {[%emt 0:00:08]} d5 {[%emt 0:00:28]} 4. e3 {[%emt 0:00:07]} c5 {[%emt 0:03:14]} 5. cxd5 {[%emt 0:00:18]} Nxd5 {[%emt 0:01:02]} 6. d4 {[%emt 0:00:51]} Nc6 {[%emt 0:09:02]} 7. Bd3 {[%emt 0:01:24]} cxd4 {[%emt 0:05:29]} 8. exd4 {[%emt 0:00:10]} Bb4 {[%emt 0:05:03]} 9. Bd2 {[%emt 0:09:27]} Nf6 {[%emt 0:06:31]} 10. O-O {[%emt 0:10:39]} O-O {[%emt 0:03:28]} 11. a3 {[%emt 0:06:11]} Be7 {[%emt 0:01:44]} 12. Be3 {[%emt 0:00:10]} b6 {[%emt 0:02:15]} 13. Rc1 {[%emt 0:12:46]} Bb7 {[%emt 0:01:43]} 14. Bb1 {[%emt 0:01:16]} Rc8 {[%emt 0:06:27]} 15. Qd3 {[%emt 0:03:17]} Nb8 {[%emt 0:03:17]} 16. Bg5 {[%emt 0:02:48]} Nbd7 {[%emt 0:01:55]} 17. Rfe1 {[%emt 0:09:13]} Re8 {[%emt 0:05:36]} 18. Rcd1 {[%emt 0:06:50]} Nf8 {[%emt 0:02:20]} 19. Ne5 {[%emt 0:06:36]} Nd5 {[%emt 0:04:06]} 20. Bd2 {[%emt 0:00:18]} Nxc3 {[%emt 0:09:12]} 21. bxc3 {[%emt 0:00:02]} Bxa3 {[%emt 0:01:00]} 22. Qh3 {[%emt 0:03:55]} Bd6 {[%emt 0:04:05]} 23. Re3 {[%emt 0:03:40]} Ng6 {[%emt 0:02:11]} 24. f4 {[%emt 0:04:04]} f5 {[%emt 0:04:34]} 25. Ba2 {[%emt 0:09:23]} Bxe5 {[%emt 0:02:29]} 26. dxe5 {[%emt 0:01:11]} Bd5 {[%emt 0:01:45]} 27. Rd3 {[%emt 0:00:36]} Bxa2 {[%emt 0:05:56]} 28. Rxd8 {[%emt 0:00:19]} Rexd8 {[%emt 0:00:08]} 29. Qe3 {[%emt 0:00:44]} Bc4 {[%emt 0:02:51]} 30. Ra1 {[%emt 0:00:04]} Rd3 {[%emt 0:01:07]} 31. Qe1 {[%emt 0:00:27]} Bb3 {[%emt 0:02:40]} 32. Qb1 {[%emt 0:01:46]} Rxd2 {[%emt 0:01:27]} 33. Qxb3 {[%emt 0:00:01]} Nxf4 {[%emt 0:00:52]} 34. Rf1 {[%emt 0:00:42]} Ne2+ {[%emt 0:02:15]} 35. Kh1 {[%emt 0:00:05]} Rd5 {[%emt 0:00:06]} 36. Qa2 {[%emt 0:00:55]} Rxe5 {[%emt 0:00:59]} 37. Qxa7 {[%emt 0:00:12]} Re4 {[%emt 0:00:40]} 38. Qd7 {[%emt 0:01:16]} Rf8 {[%emt 0:00:20]} 39. Ra1 {[%emt 0:02:21]} Nf4 {[%emt 0:00:50]} 40. h3 {[%emt 0:00:37]} h6 {[%emt 0:00:32]} 41. Ra7 {[%emt 0:00:42]} Nh5 {[%emt 0:00:03]} 42. Kh2 {[%emt 0:00:43]} f4 {[%emt 0:00:28]} 43. Qd3 {[%emt 0:00:28]} Re3 {[%emt 0:00:46]} 44. Qg6 {[%emt 0:00:27]} Re5 {[%emt 0:00:18]} 45. Re7 {[%emt 0:00:33]} f3 {[%emt 0:00:46]} 46. gxf3 {[%emt 0:00:12]} Re2+ {[%emt 0:00:35]} 47. Kg1 {[%emt 0:00:25]} Re1+ {[%emt 0:00:34]} 48. Kf2 {[%emt 0:00:20]} Re2+ {[%emt 0:00:03]} 49. Kf1 {[%emt 0:00:53]} Re5 {[%emt 0:00:01]} 50. Re8 {[%emt 0:00:29]} Nf4 {[%emt 0:01:02]} 51. Rxf8+ {[%emt 0:00:06]} Kxf8 {[%emt 0:00:02]} 52. Qb1 {[%emt 0:00:56]} Nd5 {[%emt 0:00:50]} 53. Kf2 {[%emt 0:01:02]} Kf7 {[%emt 0:00:54]} 54. c4 {[%emt 0:00:17]} Nf4 {[%emt 0:00:30]} 55. Qxb6 {[%emt 0:00:24]} Nd3+ {[%emt 0:00:29]} 56. Kg3 {[%emt 0:00:46]} Rg5+ {[%emt 0:00:23]} 57. Kh2 {[%emt 0:00:15]} Nc5 {[%emt 0:00:07]} 58. h4 {[%emt 0:00:28]} Rf5 {[%emt 0:00:10]} 59. Kg3 {[%emt 0:00:11]} h5 {[%emt 0:00:09]} 60. Qc7+ {[%emt 0:00:16]} Kf8 {[%emt 0:00:28]} 61. Kf2 {[%emt 0:00:37]} Kg8 {[%emt 0:00:52]} 62. Ke3 {[%emt 0:00:30]} Kf8 {[%emt 0:00:18]} 63. Kd4 {[%emt 0:01:04]} Nb3+ {[%emt 0:00:15]} 64. Kc3 {[%emt 0:00:15]} Nc5 {[%emt 0:00:01]} 65. Qd6+ {[%emt 0:00:14]} Kf7 {[%emt 0:00:27]} 66. Kb4 {[%emt 0:00:15]} Ke8 {[%emt 0:00:12]} 67. f4 {[%emt 0:00:33]} Kf7 {[%emt 0:00:37]} 68. Qxc5 {[%emt 0:01:07]} Rxc5 {[%emt 0:00:03]} 69. Kxc5 {[%emt 0:00:06]} e5 {[%emt 0:00:06]} 70. fxe5 {[%emt 0:00:07]} g5 {[%emt 0:00:05]} 71. Kd6 {[%emt 0:00:29]} g4 {[%emt 0:01:20]} 72. e6+ {[%emt 0:00:12]} Ke8 {[%emt 0:00:28]} 73. c5 {[%emt 0:00:05]} g3 {[%emt 0:00:13]} 74. c6 {[%emt 0:00:05]} 1-0

[Event "10th Iberoamericano-ch 2024"]
[Site "Linares"]
[Date "2024.09.27"]
[Round "5.28"]
[White "Maldonado Mena, German"]
[Black "Iglesias Ferreira, Andres"]
[Result "0-1"]
[ECO "D35"]
[WhiteElo "2123"]
[BlackElo "2285"]
[Annotator "ChessBase"]
[PlyCount "74"]
[EventDate "2024.09.25"]
[EventType "swiss"]
[EventCountry "ESP"]
[SourceTitle "playchess.com"]
[Source "ChessBase"]
[SourceQuality "1"]
[TimeControl "5400+30"]

1. d4 {[%emt 0:00:06]} d5 {[%emt 0:01:12]} 2. c4 {[%emt 0:00:07]} e6 {[%emt 0:00:11]} 3. Nc3 {[%emt 0:00:23]} Nf6 {[%emt 0:00:25]} 4. cxd5 {[%emt 0:00:07]} exd5 {[%emt 0:00:08]} 5. Bg5 {[%emt 0:00:04]} Bb4 {[%emt 0:00:35]} 6. e3 {[%emt 0:03:28]} h6 {[%emt 0:00:17]} 7. Bf4 {[%emt 0:02:02]} Ne4 {[%emt 0:05:51]} 8. Qb3 {[%emt 0:01:15]} Bxc3+ {[%emt 0:16:15]} 9. bxc3 {[%emt 0:00:52]} g5 {[%emt 0:00:19]} 10. Bb5+ {[%emt 0:02:34]} Nc6 {[%emt 0:08:53]} 11. Be5 {[%emt 0:04:32]} f6 {[%emt 0:00:20]} 12. Bg3 {[%emt 0:00:06]} h5 {[%emt 0:03:18]} 13. f3 {[%emt 0:01:02]} Nxg3 {[%emt 0:00:43]} 14. hxg3 {[%emt 0:00:08]} Qd6 {[%emt 0:02:13]} 15. Ne2 {[%emt 0:00:50]} Bd7 {[%emt 0:03:45]} 16. Rb1 {[%emt 0:01:47]} Na5 {[%emt 0:04:47]} 17. Qa4 {[%emt 0:05:12]} Nc4 {[%emt 0:00:50]} 18. e4 {[%emt 0:02:06]} a6 {[%emt 0:05:55]} 19. Bxd7+ {[%emt 0:00:41]} Qxd7 {[%emt 0:00:08]} 20. Qxd7+ {[%emt 0:02:28]} Kxd7 {[%emt 0:00:09]} 21. exd5 {[%emt 0:00:12]} b5 {[%emt 0:00:33]} 22. a4 {[%emt 0:01:42]} bxa4 {[%emt 0:00:38]} 23. Nc1 {[%emt 0:07:24]} Rab8 {[%emt 0:03:31]} 24. Rxb8 {[%emt 0:04:23]} Rxb8 {[%emt 0:00:08]} 25. Ke2 {[%emt 0:00:03]} a3 {[%emt 0:02:04]} 26. Na2 {[%emt 0:02:59]} Kd6 {[%emt 0:00:46]} 27. Kd3 {[%emt 0:00:55]} Nb2+ {[%emt 0:04:12]} 28. Kc2 {[%emt 0:04:44]} a5 {[%emt 0:00:15]} 29. c4 {[%emt 0:03:32]} Nxc4 {[%emt 0:00:17]} 30. Nc3 {[%emt 0:00:07]} Ne3+ {[%emt 0:03:38]} 31. Kd3 {[%emt 0:03:09]} Nxd5 {[%emt 0:00:37]} 32. Ne4+ {[%emt 0:00:06]} Ke7 {[%emt 0:00:35]} 33. Ra1 {[%emt 0:02:08]} a2 {[%emt 0:01:47]} 34. Kc4 {[%emt 0:00:07]} Ne3+ {[%emt 0:01:05]} 35. Kc3 {[%emt 0:01:43]} Nd1+ {[%emt 0:00:32]} 36. Kd3 {[%emt 0:03:38]} Rb3+ {[%emt 0:00:54]} 37. Kc4 {[%emt 0:03:37]} Ra3 {[%emt 0:01:28]} 0-1

[Event "10th Iberoamericano-ch 2024"]
[Site "Linares"]
[Date "2024.09.27"]
[Round "5.29"]
[White "Giron, Jorge Ernesto"]
[Black "Pastor Carvajal, Jeigoth"]
[Result "1/2-1/2"]
[ECO "E05"]
[WhiteElo "2276"]
[BlackElo "2120"]
[Annotator "ChessBase"]
[PlyCount "115"]
[EventDate "2024.09.25"]
[EventType "swiss"]
[EventCountry "ESP"]
[SourceTitle "playchess.com"]
[Source "ChessBase"]
[SourceQuality "1"]
[TimeControl "5400+30"]

1. d4 {[%emt 0:11:50]} d5 {[%emt 0:00:16]} 2. c4 {[%emt 0:00:04]} e6 {[%emt 0:00:05]} 3. Nf3 {[%emt 0:00:03]} Nf6 {[%emt 0:00:11]} 4. g3 {[%emt 0:00:04]} Be7 {[%emt 0:00:05]} 5. Bg2 {[%emt 0:00:03]} O-O {[%emt 0:00:05]} 6. O-O {[%emt 0:00:05]} dxc4 {[%emt 0:00:03]} 7. Qc2 {[%emt 0:00:05]} a6 {[%emt 0:00:09]} 8. a4 {[%emt 0:00:04]} Nc6 {[%emt 0:00:03]} 9. Qxc4 {[%emt 0:00:04]} Na5 {[%emt 0:00:04]} 10. Qc2 {[%emt 0:01:54]} b6 {[%emt 0:00:05]} 11. Bg5 {[%emt 0:05:17]} Bb7 {[%emt 0:01:56]} 12. Nc3 {[%emt 0:01:39]} Nd5 {[%emt 0:10:51]} 13. Nxd5 {[%emt 0:01:05]} Bxd5 {[%emt 0:01:12]} 14. Bxe7 {[%emt 0:05:36]} Qxe7 {[%emt 0:00:03]} 15. e4 {[%emt 0:00:16]} Bb3 {[%emt 0:05:09]} 16. Qc3 {[%emt 0:01:53]} c5 {[%emt 0:00:30]} 17. Rfc1 {[%emt 0:00:05]} Rac8 {[%emt 0:03:26]} 18. Nd2 {[%emt 0:11:53]} c4 {[%emt 0:00:07]} 19. d5 {[%emt 0:00:07]} exd5 {[%emt 0:10:33]} 20. exd5 {[%emt 0:00:08]} Rfe8 {[%emt 0:00:25]} 21. Qd4 {[%emt 0:14:19]} Qb4 {[%emt 0:06:12]} 22. Qf4 {[%emt 0:15:08]} Bxa4 {[%emt 0:06:24]} 23. d6 {[%emt 0:15:42]} Bd7 {[%emt 0:05:32]} 24. Bd5 {[%emt 0:00:21]} Be6 {[%emt 0:00:04]} 25. d7 {[%emt 0:00:13]} Bxd5 {[%emt 0:00:04]} 26. dxc8=Q {[%emt 0:00:33]} Rxc8 {[%emt 0:00:03]} 27. b3 {[%emt 0:07:37]} Nxb3 {[%emt 0:03:55]} 28. Nxb3 {[%emt 0:00:04]} Qxb3 {[%emt 0:00:05]} 29. Rab1 {[%emt 0:00:03]} Qf3 {[%emt 0:01:43]} 30. Qxf3 {[%emt 0:00:03]} Bxf3 {[%emt 0:00:05]} 31. Rxb6 {[%emt 0:00:02]} h5 {[%emt 0:01:43]} 32. Rxa6 {[%emt 0:00:11]} g6 {[%emt 0:03:24]} 33. Rc3 {[%emt 0:04:20]} Bd5 {[%emt 0:02:00]} 34. f3 {[%emt 0:00:08]} Rb8 {[%emt 0:01:04]} 35. Ra2 {[%emt 0:00:10]} Kg7 {[%emt 0:01:42]} 36. Rd2 {[%emt 0:00:45]} Be6 {[%emt 0:00:14]} 37. Kg2 {[%emt 0:03:27]} Kf6 {[%emt 0:00:36]} 38. h3 {[%emt 0:00:24]} Rb1 {[%emt 0:02:26]} 39. g4 {[%emt 0:00:20]} hxg4 {[%emt 0:01:33]} 40. hxg4 {[%emt 0:00:21]} Ke5 {[%emt 0:01:06]} 41. Re3+ {[%emt 0:01:10]} Kf6 {[%emt 0:00:19]} 42. Rd6 {[%emt 0:02:15]} Rb5 {[%emt 0:00:58]} 43. Rc6 {[%emt 0:00:29]} Rb1 {[%emt 0:01:53]} 44. Kg3 {[%emt 0:00:32]} Rd1 {[%emt 0:02:22]} 45. Re4 {[%emt 0:01:16]} Kg7 {[%emt 0:05:37]} 46. Kf4 {[%emt 0:00:47]} Rd3 {[%emt 0:00:21]} 47. Rexe6 {[%emt 0:00:21]} fxe6 {[%emt 0:00:08]} 48. Rxc4 {[%emt 0:00:02]} Rd7 {[%emt 0:01:07]} 49. Ke5 {[%emt 0:00:12]} Kf7 {[%emt 0:00:16]} 50. Rc5 {[%emt 0:01:24]} g5 {[%emt 0:00:38]} 51. Ke4 {[%emt 0:00:33]} Kf6 {[%emt 0:00:14]} 52. Rc8 {[%emt 0:00:03]} Ra7 {[%emt 0:00:32]} 53. Rf8+ {[%emt 0:00:03]} Kg7 {[%emt 0:00:24]} 54. Rd8 {[%emt 0:00:24]} Kf6 {[%emt 0:00:13]} 55. Rd4 {[%emt 0:00:45]} Ra1 {[%emt 0:00:14]} 56. Rd3 {[%emt 0:00:49]} Ra4+ {[%emt 0:00:24]} 57. Ke3 {[%emt 0:00:14]} Ke5 {[%emt 0:00:46]} 58. Rb3 {[%emt 0:00:05]} 1/2-1/2

[Event "10th Iberoamericano-ch 2024"]
[Site "Linares"]
[Date "2024.09.27"]
[Round "5.30"]
[White "Mingarro Carceller, Sergi"]
[Black "Ontanon Gomez, Pablo"]
[Result "1/2-1/2"]
[ECO "B27"]
[WhiteElo "2273"]
[BlackElo "2118"]
[Annotator "ChessBase"]
[PlyCount "66"]
[EventDate "2024.09.25"]
[EventType "swiss"]
[EventCountry "ESP"]
[SourceTitle "playchess.com"]
[Source "ChessBase"]
[SourceQuality "1"]
[TimeControl "5400+30"]

1. e4 {[%emt 0:00:05]} c5 {[%emt 0:00:10]} 2. Nf3 {[%emt 0:00:09]} g6 {[%emt 0:00:59]} 3. d4 {[%emt 0:00:38]} cxd4 {[%emt 0:00:05]} 4. Qxd4 {[%emt 0:00:07]} Nf6 {[%emt 0:00:36]} 5. Nc3 {[%emt 0:00:19]} Nc6 {[%emt 0:01:57]} 6. Qa4 {[%emt 0:00:13]} d6 {[%emt 0:07:48]} 7. e5 {[%emt 0:00:48]} dxe5 {[%emt 0:05:32]} 8. Nxe5 {[%emt 0:00:13]} Bd7 {[%emt 0:11:24]} 9. Nxd7 {[%emt 0:00:12]} Qxd7 {[%emt 0:00:31]} 10. Be3 {[%emt 0:03:32]} Bg7 {[%emt 0:04:00]} 11. Rd1 {[%emt 0:00:50]} Qc8 {[%emt 0:01:01]} 12. Be2 {[%emt 0:00:28]} O-O {[%emt 0:00:35]} 13. O-O {[%emt 0:00:08]} a6 {[%emt 0:10:30]} 14. Qb3 {[%emt 0:04:15]} b5 {[%emt 0:06:35]} 15. a4 {[%emt 0:02:54]} b4 {[%emt 0:01:38]} 16. Nd5 {[%emt 0:04:12]} Nxd5 {[%emt 0:05:37]} 17. Rxd5 {[%emt 0:01:25]} Qe6 {[%emt 0:01:00]} 18. Rfd1 {[%emt 0:05:22]} Qf6 {[%emt 0:05:09]} 19. Qc4 {[%emt 0:05:37]} h6 {[%emt 0:13:56]} 20. Rc5 {[%emt 0:05:02]} Nd8 {[%emt 0:01:16]} 21. Bf3 {[%emt 0:12:51]} Ne6 {[%emt 0:04:21]} 22. Bxa8 {[%emt 0:13:06]} Nxc5 {[%emt 0:00:18]} 23. Bd5 {[%emt 0:04:19]} Nxa4 {[%emt 0:04:28]} 24. Qxb4 {[%emt 0:00:57]} Nxb2 {[%emt 0:00:23]} 25. Bd4 {[%emt 0:05:21]} Qd6 {[%emt 0:01:07]} 26. Qxd6 {[%emt 0:07:24]} exd6 {[%emt 0:00:03]} 27. Bxb2 {[%emt 0:00:12]} Bxb2 {[%emt 0:00:07]} 28. Bc4 {[%emt 0:00:22]} Rc8 {[%emt 0:01:08]} 29. Bxa6 {[%emt 0:00:39]} Rxc2 {[%emt 0:00:16]} 30. Rxd6 {[%emt 0:00:18]} Rc1+ {[%emt 0:01:14]} 31. Bf1 {[%emt 0:00:06]} Be5 {[%emt 0:00:35]} 32. Rd8+ {[%emt 0:00:14]} Kg7 {[%emt 0:00:28]} 33. g3 {[%emt 0:00:07]} Rc2 {[%emt 0:03:27]} 1/2-1/2

[Event "10th Iberoamericano-ch 2024"]
[Site "Linares"]
[Date "2024.09.27"]
[Round "5.31"]
[White "Atienza Alvarez, Javier"]
[Black "Moral Garcia, Serafin"]
[Result "0-1"]
[ECO "E04"]
[WhiteElo "2119"]
[BlackElo "2262"]
[Annotator "ChessBase"]
[PlyCount "86"]
[EventDate "2024.09.25"]
[EventType "swiss"]
[EventCountry "ESP"]
[SourceTitle "playchess.com"]
[Source "ChessBase"]
[SourceQuality "1"]
[TimeControl "5400+30"]

1. d4 {[%emt 0:03:18]} Nf6 {[%emt 0:00:09]} 2. c4 {[%emt 0:00:52]} e6 {[%emt 0:00:09]} 3. g3 {[%emt 0:00:31]} d5 {[%emt 0:00:09]} 4. Bg2 {[%emt 0:00:04]} dxc4 {[%emt 0:00:50]} 5. Nf3 {[%emt 0:01:09]} a6 {[%emt 0:00:53]} 6. O-O {[%emt 0:00:53]} Nc6 {[%emt 0:00:41]} 7. e3 {[%emt 0:00:05]} Rb8 {[%emt 0:00:51]} 8. Nfd2 {[%emt 0:00:33]} e5 {[%emt 0:00:38]} 9. Bxc6+ {[%emt 0:00:14]} bxc6 {[%emt 0:00:02]} 10. dxe5 {[%emt 0:00:07]} Ng4 {[%emt 0:00:24]} 11. Nxc4 {[%emt 0:00:05]} Be6 {[%emt 0:00:41]} 12. Nbd2 {[%emt 0:00:24]} Bb4 {[%emt 0:00:30]} 13. b3 {[%emt 0:15:01]} h5 {[%emt 0:00:56]} 14. f3 {[%emt 0:07:12]} Nxe3 {[%emt 0:09:41]} 15. Nxe3 {[%emt 0:14:24]} Qd4 {[%emt 0:00:41]} 16. Qc2 {[%emt 0:19:56]} Qxe3+ {[%emt 0:02:52]} 17. Kg2 {[%emt 0:04:44]} Qe2+ {[%emt 0:09:41]} 18. Rf2 {[%emt 0:00:45]} Bh3+ {[%emt 0:01:59]} 19. Kg1 {[%emt 0:02:07]} Qxe5 {[%emt 0:07:27]} 20. Bb2 {[%emt 0:02:07]} Qg5 {[%emt 0:04:17]} 21. Re2+ {[%emt 0:12:17]} Kf8 {[%emt 0:00:42]} 22. Ne4 {[%emt 0:03:41]} Qg6 {[%emt 0:06:24]} 23. a3 {[%emt 0:01:11]} Be7 {[%emt 0:01:47]} 24. b4 {[%emt 0:02:25]} Rd8 {[%emt 0:05:28]} 25. Qc4 {[%emt 0:01:54]} Qe6 {[%emt 0:04:49]} 26. Qc2 {[%emt 0:01:10]} Qf5 {[%emt 0:02:16]} 27. Qc3 {[%emt 0:00:32]} Qg6 {[%emt 0:01:05]} 28. Rae1 {[%emt 0:00:20]} Bf5 {[%emt 0:01:48]} 29. Nf2 {[%emt 0:02:08]} Bd6 {[%emt 0:02:13]} 30. Qxc6 {[%emt 0:00:58]} Kg8 {[%emt 0:00:15]} 31. Ne4 {[%emt 0:04:16]} h4 {[%emt 0:04:27]} 32. Nxd6 {[%emt 0:00:28]} Rxd6 {[%emt 0:02:46]} 33. Re8+ {[%emt 0:00:06]} Kh7 {[%emt 0:00:01]} 34. Rxh8+ Kxh8 35. Qa8+ {[%emt 0:00:49]} Kh7 {[%emt 0:00:29]} 36. Re8 {[%emt 0:01:09]} Rd1+ {[%emt 0:00:53]} 37. Kf2 {[%emt 0:00:08]} Qg5 {[%emt 0:03:49]} 38. Rh8+ {[%emt 0:00:44]} Kg6 39. Qc6+ {[%emt 0:00:30]} Rd6 {[%emt 0:00:18]} 40. f4 {[%emt 0:00:42]} Rxc6 {[%emt 0:00:17]} 41. fxg5 {[%emt 0:00:30]} Rc2+ {[%emt 0:00:06]} 42. Kf3 {[%emt 0:00:02]} Rxb2 {[%emt 0:00:19]} 43. gxh4 {[%emt 0:00:01]} Rxh2 {[%emt 0:00:54]} 0-1